bitfinex-derivatives/quotes_BTCF0:USTF0_20241226
["timestamp","ask_amount","ask_price","bid_price","bid_amount"]
[1735203679126,0.041774,95833.0,95823.0,0.154378]
[1735203679724,0.041774,95833.0,95830.0,0.004]
[1735203680121,0.041774,95833.0,95830.0,0.005]
[1735203680628,0.04177,95843.0,95832.0,0.041774]
[1735203681633,0.001,95833.0,95832.0,0.041774]
[1735203681826,0.001,95833.0,95832.0,0.042774]
[1735203682031,0.04177,95843.0,95832.0,0.042774]
[1735203682238,0.04177,95843.0,95832.0,0.045774]
[1735203682535,0.041771,95842.0,95832.0,0.045774]
[1735203683225,0.041771,95842.0,95832.0,0.044774]
[1735203683421,0.041771,95842.0,95832.0,0.045774]
[1735203684726,0.041771,95842.0,95832.0,0.042774]
[1735203684922,0.041771,95842.0,95832.0,0.045774]
[1735203685924,0.15317066,95843.0,95832.0,0.045774]
[1735203686118,0.041771,95840.0,95832.0,0.045774]
[1735203686635,0.15317066,95843.0,95813.0,0.24971335]
[1735203686636,0.10441506,95842.0,95813.0,0.24971335]
[1735203686831,0.10441506,95830.0,95813.0,0.24971335]
[1735203687032,0.041781,95819.0,95813.0,0.24971335]
[1735203687223,0.20883012,95823.0,95810.0,0.24971335]
[1735203687537,0.041787,95803.0,95802.0,0.31107547]
[1735203688433,0.041787,95803.0,95800.0,9.059e-05]
[1735203688935,0.041784,95811.0,95786.0,0.041794]
[1735203689135,0.14620506,95796.0,95786.0,0.041794]
[1735203689329,0.041794,95789.0,95784.0,0.0923]
[1735203689530,0.10441506,95796.0,95784.0,0.0923]
[1735203689735,0.10441506,95796.0,95787.0,0.041794]
[1735203690031,0.041795,95787.0,95779.0,0.05227044]
[1735203690236,0.10441506,95800.0,95786.0,0.004]
[1735203690423,0.041792,95792.0,95786.0,0.004]
[1735203690837,0.041792,95792.0,95784.0,0.041795]
[1735203691036,0.041792,95792.0,95787.0,0.004]
[1735203691235,0.041792,95792.0,95787.0,0.045794]
[1735203691437,0.001,95796.0,95787.0,0.004]
[1735203691942,0.001,95792.0,95791.0,0.041793]
[1735203692235,0.001,95796.0,95795.0,0.041791]
[1735203692642,0.001,95792.0,95787.0,0.01063877]
[1735203692834,0.001,95792.0,95790.0,0.041793]
[1735203693326,0.10441506,95800.0,95795.0,0.004]
[1735203693535,0.04179,95797.0,95795.0,0.004]
[1735203694035,0.001,95796.0,95795.0,0.004]
[1735203694339,0.001,95796.0,95782.0,0.041796]
[1735203694340,0.001,95792.0,95790.0,0.005]
[1735203694535,0.041793,95791.0,95790.0,0.005]
[1735203695537,0.042793,95791.0,95784.0,0.041795]
[1735203696239,0.041793,95790.0,95784.0,0.041795]
[1735203696436,0.041797,95781.0,95775.0,0.0974]
[1735203696639,0.041797,95781.0,95750.0,0.31107547]
[1735203696640,0.10441506,95785.0,95750.0,0.41549053]
[1735203696942,0.041799,95776.0,95768.0,0.041802]
[1735203697533,0.0418,95774.0,95768.0,0.041802]
[1735203697928,0.01040336,95776.0,95768.0,0.041802]
[1735203698128,0.10441506,95780.0,95768.0,0.041802]
[1735203698328,0.001,95776.0,95760.0,0.01035284]
[1735203698646,0.10441506,95770.0,95763.0,0.041805]
[1735203698841,0.10441506,95770.0,95764.0,0.041804]
[1735203699737,0.001,95774.0,95768.0,0.041802]
[1735203699943,0.001,95774.0,95760.0,0.10441506]
[1735203700149,0.001,95774.0,95772.0,0.041801]
[1735203700334,0.001,95774.0,95760.0,0.10441506]
[1735203700335,0.15317066,95796.0,95773.0,0.1008]
[1735203700534,0.15317066,95796.0,95786.0,0.10441506]
[1735203700754,0.15317066,95796.0,95795.0,0.041791]
[1735203701047,0.00177066,95796.0,95795.0,0.041791]
[1735203701548,0.01075702,95809.0,95803.0,0.041787]
[1735203701746,0.10441506,95810.0,95803.0,0.041787]
[1735203703137,0.003,95810.0,95805.0,0.041786]
[1735203703631,0.005,95810.0,95808.0,0.041785]
[1735203704139,0.0977,95834.0,95809.0,0.2918]
[1735203704344,0.041772,95840.0,95827.0,0.041777]
[1735203704539,0.041772,95840.0,95820.0,0.10441506]
[1735203704738,0.05228272,95840.0,95820.0,0.10441506]
[1735203704936,0.05228272,95840.0,95829.0,0.041776]
[1735203705133,0.05228272,95840.0,95820.0,0.10441506]
[1735203705340,0.01051072,95840.0,95838.0,0.041772]
[1735203705542,0.18364305,95842.0,95838.0,0.041772]
[1735203706050,0.226068,95849.0,95838.0,0.041772]
[1735203706234,0.2365562,95849.0,95838.0,0.041772]
[1735203706438,0.041772,95840.0,95830.0,0.041775]
[1735203707653,0.002,95840.0,95820.0,0.15696229]
[1735203708034,0.002,95840.0,95809.0,0.2918]
[1735203708035,0.002,95840.0,95828.0,0.041776]
[1735203708446,0.005,95840.0,95828.0,0.041776]
[1735203708843,0.002,95840.0,95831.0,0.041775]
[1735203709439,0.002,95840.0,95810.0,0.15696229]
[1735203709646,0.1947882,95849.0,95835.0,0.041773]
[1735203709844,0.002,95840.0,95826.0,0.041777]
[1735203710047,0.041775,95832.0,95818.0,0.041781]
[1735203710243,0.041779,95823.0,95808.0,0.041785]
[1735203710449,0.041781,95818.0,95808.0,0.041785]
[1735203710645,0.041781,95818.0,95810.0,0.002]
[1735203711341,0.15696229,95820.0,95810.0,0.002]
[1735203711342,0.041783,95814.0,95810.0,0.002]
[1735203712145,0.041783,95814.0,95808.0,0.001]
[1735203712741,0.00862767,95820.0,95815.0,0.041782]
[1735203712942,0.041773,95836.0,95810.0,0.15696229]
[1735203713243,0.0963,95840.0,95820.0,0.15696229]
[1735203713546,0.18364305,95834.0,95833.0,0.041774]
[1735203714344,0.22541705,95834.0,95826.0,0.041777]
[1735203714653,0.0963,95840.0,95831.0,0.041775]
[1735203715049,0.005,95834.0,95831.0,0.041775]
[1735203715257,0.005,95834.0,95833.0,0.041774]
[1735203715455,0.041766,95852.0,95839.0,0.041771]
[1735203715767,0.002,95834.0,95833.0,0.041774]
[1735203716144,0.002,95834.0,95825.0,0.041778]
[1735203716948,0.002,95834.0,95832.0,0.041774]
[1735203717557,0.004,95834.0,95832.0,0.041774]
[1735203718052,0.00848348,95840.0,95832.0,0.041774]
[1735203718259,0.005,95834.0,95832.0,0.041774]
[1735203718563,0.006,95834.0,95832.0,0.041774]
[1735203719155,0.005,95834.0,95832.0,0.041774]
[1735203719754,0.007,95840.0,95832.0,0.041774]
[1735203720353,0.007,95840.0,95827.0,0.00844474]
[1735203720354,0.007,95840.0,95836.0,0.041773]
[1735203720555,0.007,95840.0,95838.0,0.041772]
[1735203721148,0.002,95840.0,95838.0,0.041772]
[1735203721752,0.002,95840.0,95811.0,0.1914]
[1735203721953,0.002,95840.0,95819.0,0.04178]
[1735203721954,0.041778,95825.0,95819.0,0.04178]
[1735203722160,0.0943,95824.0,95819.0,0.04178]
[1735203722350,0.136078,95824.0,95812.0,0.041783]
[1735203722547,0.041779,95823.0,95812.0,0.041783]
[1735203722954,0.041779,95823.0,95813.0,0.041783]
[1735203723150,0.041779,95823.0,95814.0,0.041782]
[1735203723350,0.041779,95823.0,95816.0,0.041781]
[1735203723853,0.041783,95814.0,95812.0,0.002]
[1735203724350,0.00854681,95814.0,95812.0,0.002]
[1735203724548,0.041779,95823.0,95812.0,0.002]
[1735203725149,0.041783,95815.0,95812.0,0.002]
[1735203725352,0.041783,95815.0,95808.0,0.041785]
[1735203725353,0.041782,95815.0,95814.0,0.001]
[1735203726655,0.20764363,95824.0,95803.0,0.041787]
[1735203726857,0.10471346,95813.0,95800.0,0.1]
[1735203727059,0.041786,95806.0,95800.0,0.1]
[1735203727856,0.041788,95803.0,95800.0,0.1]
[1735203728060,0.0967,95802.0,95800.0,0.1]
[1735203728856,0.138488,95802.0,95800.0,0.1]
[1735203729259,0.0967,95802.0,95784.0,0.041796]
[1735203729455,0.15711634,95794.0,95767.0,0.19539595]
[1735203729666,0.15711634,95794.0,95772.0,0.18687945]
[1735203729865,0.15711634,95794.0,95789.0,0.041793]
[1735203730163,0.041792,95793.0,95780.0,0.041797]
[1735203730365,0.041792,95793.0,95782.0,0.041796]
[1735203731268,0.041792,95793.0,95784.0,0.002]
[1735203731469,0.042792,95793.0,95784.0,0.002]
[1735203731766,0.001,95793.0,95784.0,0.002]
[1735203731965,0.041798,95780.0,95770.0,0.041801]
[1735203732166,0.19891434,95780.0,95770.0,0.041801]
[1735203732373,0.19891434,95780.0,95772.0,0.041801]
[1735203733064,0.19891434,95780.0,95773.0,0.0418]
[1735203733758,0.15711634,95780.0,95773.0,0.0418]
[1735203733960,0.04174219,95778.0,95773.0,0.0418]
[1735203734271,0.039801,95772.0,95764.0,0.041804]
[1735203735163,0.037801,95772.0,95764.0,0.041804]
[1735203735364,0.037801,95772.0,95766.0,0.041803]
[1735203735664,0.038801,95772.0,95766.0,0.041803]
[1735203735969,0.002,95772.0,95764.0,0.002]
[1735203736266,0.002,95772.0,95770.0,0.041802]
[1735203738168,0.002,95772.0,95771.0,0.0955]
[1735203738567,0.0087825,95783.0,95778.0,0.041798]
[1735203738767,0.041794,95787.0,95778.0,0.041798]
[1735203739469,0.05072489,95787.0,95778.0,0.041798]
[1735203740375,0.041795,95785.0,95778.0,0.041798]
[1735203741072,0.041795,95785.0,95779.0,0.041798]
[1735203741575,0.001,95787.0,95780.0,0.041797]
[1735203741775,0.001,95785.0,95780.0,0.041797]
[1735203742366,0.001,95785.0,95782.0,0.041796]
[1735203742567,0.001,95785.0,95783.0,0.041796]
[1735203743285,0.16601101,95790.0,95783.0,0.041796]
[1735203743575,0.001,95785.0,95783.0,0.041796]
[1735203746788,0.042795,95785.0,95774.0,0.0418]
[1735203747490,0.042795,95785.0,95767.0,0.0938]
[1735203747790,0.042795,95785.0,95776.0,0.041799]
[1735203748184,0.043795,95785.0,95776.0,0.041799]
[1735203749180,0.043795,95785.0,95778.0,0.041798]
[1735203749378,0.043795,95785.0,95767.0,0.0938]
[1735203749379,0.002,95785.0,95784.0,0.041796]
[1735203750195,0.001,95785.0,95773.0,0.0418]
[1735203750495,0.041778,95824.0,95797.0,0.04179]
[1735203750679,0.00882048,95821.0,95813.0,0.041783]
[1735203750884,0.00882048,95821.0,95806.0,0.10477723]
[1735203750885,0.04178,95819.0,95814.0,0.041782]
[1735203751888,0.004,95816.0,95814.0,0.041782]
[1735203753192,0.005,95816.0,95814.0,0.041782]
[1735203753704,0.004,95819.0,95808.0,0.00866226]
[1735203753895,0.004,95819.0,95806.0,0.10477723]
[1735203753896,0.0949,95830.0,95824.0,0.041778]
[1735203754097,0.0949,95830.0,95829.0,0.041776]
[1735203754798,0.041784,95810.0,95799.0,0.18687945]
[1735203755004,0.041782,95815.0,95803.0,0.041787]
[1735203755207,0.041786,95806.0,95799.0,0.18687945]
[1735203755395,0.10477723,95810.0,95799.0,0.18687945]
[1735203755396,0.041788,95803.0,95799.0,0.18687945]
[1735203755591,0.041788,95802.0,95799.0,0.18687945]
[1735203755796,0.099,95805.0,95783.0,0.18687945]
[1735203755993,0.10477723,95793.0,95783.0,0.18687945]
[1735203756210,0.041794,95788.0,95783.0,0.18687945]
[1735203756999,0.10477723,95800.0,95783.0,0.002]
[1735203757307,0.001,95793.0,95784.0,0.041795]
[1735203757704,0.001,95788.0,95784.0,0.041795]
[1735203757902,0.001,95788.0,95787.0,0.041794]
[1735203758100,0.10477723,95800.0,95783.0,0.003]
[1735203758403,0.10477723,95800.0,95790.0,0.041793]
[1735203758404,0.10577723,95800.0,95790.0,0.041793]
[1735203759907,0.10477723,95800.0,95790.0,0.041793]
[1735203760493,0.10577723,95800.0,95790.0,0.041793]
[1735203761007,0.10577723,95800.0,95790.0,0.042793]
[1735203761405,0.14756623,95800.0,95790.0,0.042793]
[1735203762514,0.14756623,95800.0,95791.0,0.041792]
[1735203763206,0.001,95800.0,95790.0,0.001]
[1735203763406,0.041779,95823.0,95798.0,0.041789]
[1735203763605,0.0926,95822.0,95810.0,0.10477723]
[1735203764107,0.0926,95822.0,95820.0,0.04178]
[1735203765314,0.001,95823.0,95822.0,0.041779]
[1735203766108,0.0926,95833.0,95822.0,0.041779]
[1735203766614,0.006,95823.0,95822.0,0.041779]
[1735203767015,0.01,95823.0,95822.0,0.041779]
[1735203767602,0.004,95823.0,95822.0,0.050416]
[1735203768910,0.006,95833.0,95822.0,0.050416]
[1735203769116,0.0921,95846.0,95822.0,0.050416]
[1735203769117,0.0914,95863.0,95850.0,0.041766]
[1735203769317,0.041763,95858.0,95850.0,0.14654323]
[1735203769612,0.041764,95856.0,95850.0,0.041766]
[1735203770016,0.10477723,95860.0,95840.0,0.10477723]
[1735203770216,0.041765,95854.0,95844.0,0.041769]
[1735203770416,0.041765,95854.0,95846.0,0.041768]
[1735203771300,0.21359254,95895.0,95846.0,0.01568]
[1735203771505,0.21359254,95895.0,95885.0,0.10477723]
[1735203771506,0.00080001,95894.0,95885.0,0.10477723]
[1735203771702,0.0952,95908.0,95885.0,0.10477723]
[1735203771703,0.21359254,95897.0,95895.0,0.041747]
[1735203773119,0.21659254,95897.0,95895.0,0.041747]
[1735203773315,0.041739,95914.0,95885.0,0.10477723]
[1735203773316,0.00080001,95915.0,95891.0,0.00911848]
[1735203773612,0.1838305,95933.0,95901.0,0.041745]
[1735203773613,0.041738,95916.0,95901.0,0.041745]
[1735203774318,0.041738,95916.0,95880.0,0.11399819]
[1735203774319,0.15677683,95911.0,95892.0,0.041748]
[1735203774508,0.041749,95891.0,95871.0,0.00915691]
[1735203774704,0.24847683,95890.0,95876.0,0.041756]
[1735203774909,0.24847683,95890.0,95867.0,0.041759]
[1735203775209,0.15677683,95880.0,95859.0,0.2491755]
[1735203775416,0.0952,95879.0,95859.0,0.2491755]
[1735203775611,0.0952,95879.0,95874.0,0.041756]
[1735203775919,0.0952,95879.0,95865.0,0.04176]
[1735203776117,0.041756,95876.0,95867.0,0.003]
[1735203776312,0.0952,95879.0,95867.0,0.003]
[1735203776517,0.0952,95879.0,95873.0,0.041757]
[1735203776718,0.0952,95879.0,95874.0,0.004]
[1735203777019,0.0917,95890.0,95874.0,0.006]
[1735203777315,0.0917,95890.0,95882.0,0.041753]
[1735203777712,0.0917,95890.0,95874.0,0.002]
[1735203777910,0.0917,95890.0,95888.0,0.04175]
[1735203778107,0.041743,95906.0,95888.0,0.04175]
[1735203778312,0.041741,95909.0,95895.0,0.041747]
[1735203778522,0.15677683,95920.0,95890.0,0.15677683]
[1735203778820,0.15677683,95920.0,95889.0,0.04175]
[1735203778821,0.041738,95917.0,95889.0,0.04175]
[1735203779012,0.45765684,95920.0,95880.0,0.15677683]
[1735203779219,0.041742,95908.0,95891.0,0.041749]
[1735203779416,0.002,95906.0,95891.0,0.041749]
[1735203779822,0.041747,95897.0,95881.0,0.041753]
[1735203780009,0.041747,95897.0,95880.0,0.041753]
[1735203780205,0.041748,95895.0,95884.0,0.041752]
[1735203781206,0.041748,95895.0,95880.0,0.15877683]
[1735203781413,0.041748,95895.0,95886.0,0.041751]
[1735203781714,0.2837,95905.0,95880.0,0.002]
[1735203781715,0.041744,95904.0,95880.0,0.15877683]
[1735203781924,0.1877,95905.0,95903.0,0.041744]
[1735203782511,0.0909,95905.0,95903.0,0.041744]
[1735203783122,0.0909,95905.0,95895.0,0.041747]
[1735203783415,0.0905,95904.0,95903.0,0.001]
[1735203783819,0.013,95905.0,95904.0,0.041743]
[1735203784315,0.004,95905.0,95904.0,0.041743]
[1735203784513,0.009,95905.0,95904.0,0.041743]
[1735203785324,0.005,95905.0,95904.0,0.041743]
[1735203786129,0.01,95905.0,95904.0,0.041743]
[1735203786611,0.014,95905.0,95904.0,0.042743]
[1735203788419,0.009,95905.0,95904.0,0.042743]
[1735203789724,0.0916,95919.0,95899.0,0.00901335]
[1735203789918,0.0916,95919.0,95891.0,0.1894]
[1735203789919,0.0916,95919.0,95904.0,0.001]
[1735203790119,0.0916,95919.0,95913.0,0.041739]
[1735203791317,0.0916,95919.0,95900.0,0.15677683]
[1735203791513,0.0946,95919.0,95900.0,0.15677683]
[1735203791723,0.003,95919.0,95918.0,0.041737]
[1735203792118,0.005,95919.0,95918.0,0.041737]
[1735203792313,0.041738,95917.0,95913.0,0.041739]
[1735203792525,0.0954,95916.0,95913.0,0.041739]
[1735203792830,0.0954,95916.0,95880.0,0.15677683]
[1735203793015,0.041743,95906.0,95883.0,0.041752]
[1735203793219,0.0947,95905.0,95900.0,0.002]
[1735203793528,0.041749,95892.0,95872.0,0.18687945]
[1735203793825,0.15677683,95890.0,95872.0,0.00907325]
[1735203794015,0.0924,95891.0,95871.0,0.18687945]
[1735203794220,0.0924,95891.0,95888.0,0.04175]
[1735203794422,0.0924,95891.0,95887.0,0.041751]
[1735203794726,0.0924,95891.0,95871.0,0.18687945]
[1735203795027,0.001,95890.0,95888.0,0.04175]
[1735203796425,0.001,95890.0,95888.0,0.04275]
[1735203797032,0.0934,95891.0,95888.0,0.04275]
[1735203797623,0.0947,95905.0,95888.0,0.002]
[1735203797825,0.1020552,95905.0,95902.0,0.041744]
[1735203798722,0.1020552,95905.0,95903.0,0.041744]
[1735203799615,0.1040552,95905.0,95903.0,0.041744]
[1735203800233,0.1090552,95905.0,95903.0,0.041744]
[1735203800529,0.1017,95905.0,95903.0,0.041744]
[1735203800717,0.002,95905.0,95903.0,0.042744]
[1735203801027,0.0889,95906.0,95903.0,0.001]
[1735203801231,0.0889,95906.0,95904.0,0.041743]
[1735203803430,0.0913411,95913.0,95912.0,0.04174]
[1735203803934,0.0913411,95914.0,95912.0,0.04174]
[1735203804737,0.002,95913.0,95912.0,0.04174]
[1735203805522,0.002,95914.0,95913.0,0.041739]
[1735203806035,0.005,95914.0,95913.0,0.041739]
[1735203806334,0.002,95914.0,95913.0,0.041739]
[1735203807134,0.005,95914.0,95913.0,0.041739]
[1735203807837,0.003,95914.0,95913.0,0.041739]
[1735203808733,0.005,95914.0,95913.0,0.041739]
[1735203810826,0.00506817,95914.0,95913.0,0.041739]
[1735203813236,0.00506817,95914.0,95909.0,0.00744218]
[1735203813431,0.04174,95912.0,95910.0,0.2491755]
[1735203813731,0.0919,95911.0,95910.0,0.2491755]
[1735203813923,0.0919,95911.0,95903.0,0.31107547]
[1735203814128,0.133641,95911.0,95903.0,0.35281947]
[1735203814935,0.041747,95897.0,95895.0,0.0006]
[1735203815235,0.041754,95880.0,95872.0,0.37393057]
[1735203815439,0.10446641,95882.0,95872.0,0.37329057]
[1735203815628,0.041755,95879.0,95872.0,0.37329057]
[1735203816229,0.041755,95878.0,95872.0,0.37329057]
[1735203816535,0.10446641,95882.0,95859.0,0.0006]
[1735203816726,0.10446641,95870.0,95869.0,0.041759]
[1735203817040,0.10446641,95879.0,95873.0,0.041757]
[1735203817231,0.041749,95892.0,95872.0,0.002]
[1735203817425,0.10446641,95890.0,95887.0,0.041751]
[1735203817628,0.05075146,95896.0,95887.0,0.041751]
[1735203817839,0.10446641,95897.0,95887.0,0.041751]
[1735203818029,0.041747,95896.0,95888.0,0.04175]
[1735203818534,0.087,95895.0,95888.0,0.04175]
[1735203818834,0.087,95895.0,95889.0,0.04175]
[1735203819032,0.087,95895.0,95870.0,0.1845]
[1735203819233,0.15359335,95893.0,95871.0,0.041757]
[1735203819432,0.15359335,95893.0,95870.0,0.1845]
[1735203819733,0.15359335,95893.0,95883.0,0.041752]
[1735203819935,0.12280193,95888.0,95870.0,0.1845]
[1735203820136,0.12280193,95888.0,95887.0,0.041751]
[1735203821326,0.12280193,95888.0,95883.0,0.002]
[1735203821543,0.041752,95885.0,95883.0,0.002]
[1735203821842,0.041752,95885.0,95883.0,0.007]
[1735203822733,0.09212221,95884.0,95883.0,0.007]
[1735203822935,0.13387421,95884.0,95883.0,0.001]
[1735203823143,0.09212221,95884.0,95861.0,0.092]
[1735203823440,0.15682693,95871.0,95864.0,0.04176]
[1735203823643,0.15682693,95871.0,95866.0,0.04176]
[1735203824346,0.12280193,95870.0,95866.0,0.04176]
[1735203824735,0.12280193,95870.0,95869.0,0.041759]
[1735203825339,0.12280193,95874.0,95873.0,0.041757]
[1735203826841,0.12280193,95879.0,95875.0,0.041756]
[1735203828544,0.09204258,95876.0,95875.0,0.045756]
[1735203828942,0.09204258,95876.0,95875.0,0.004]
[1735203829147,0.13379858,95876.0,95875.0,0.005]
[1735203829441,0.041756,95876.0,95875.0,0.005]
[1735203829845,0.041756,95876.0,95867.0,0.041759]
[1735203830037,0.041756,95876.0,95875.0,0.005]
[1735203830949,0.041756,95876.0,95875.0,0.004]
[1735203831949,0.042756,95876.0,95870.0,0.041758]
[1735203832444,0.12280193,95879.0,95871.0,0.041757]
[1735203832638,0.12280193,95879.0,95878.0,0.041755]
[1735203832845,0.15359335,95885.0,95884.0,0.041752]
[1735203833034,3.5e-07,95885.0,95884.0,0.041752]
[1735203833447,0.09201455,95891.0,95890.0,0.041749]
[1735203834553,0.041745,95902.0,95876.0,0.0975624]
[1735203834847,0.041745,95902.0,95901.0,0.041745]
[1735203835053,0.09201455,95911.0,95905.0,0.041743]
[1735203835054,0.041742,95908.0,95905.0,0.041743]
[1735203835941,0.09201455,95907.0,95905.0,0.041743]
[1735203837251,0.09301455,95907.0,95905.0,0.041743]
[1735203837650,0.09301455,95907.0,95884.0,0.041752]
[1735203837949,0.041749,95892.0,95884.0,0.041752]
[1735203838352,0.041749,95892.0,95872.0,0.0936]
[1735203838549,0.041749,95892.0,95880.0,0.10453932]
[1735203838747,0.041749,95892.0,95887.0,0.041751]
[1735203839449,0.042749,95892.0,95887.0,0.041751]
[1735203839845,0.042749,95892.0,95889.0,0.04175]
[1735203840253,0.001,95892.0,95880.0,0.004]
[1735203840549,0.041755,95877.0,95876.0,0.007]
[1735203840957,0.041755,95877.0,95869.0,0.041758]
[1735203840958,0.10453932,95890.0,95869.0,0.041758]
[1735203841142,0.04176,95866.0,95861.0,0.041762]
[1735203842550,0.041761,95863.0,95861.0,0.004]
[1735203842950,0.15688906,95871.0,95837.0,0.041772]
[1735203843258,0.041771,95840.0,95817.0,0.0914]
[1735203843457,0.041771,95840.0,95825.0,0.041778]
[1735203843654,0.15688906,95850.0,95825.0,0.041778]
[1735203844151,0.041768,95848.0,95825.0,0.041778]
[1735203844357,0.041773,95836.0,95825.0,0.041778]
[1735203844856,0.041773,95836.0,95825.0,0.048778]
[1735203845364,0.09211712,95835.0,95833.0,0.041774]
[1735203845548,0.09211712,95835.0,95825.0,0.007]
[1735203846043,0.041777,95827.0,95825.0,0.007]
[1735203846444,0.041777,95827.0,95825.0,0.01]
[1735203847359,0.041777,95827.0,95825.0,0.003]
[1735203848159,0.041777,95827.0,95813.0,0.00010384]
[1735203848460,0.042777,95827.0,95825.0,0.003]
[1735203849253,0.042777,95827.0,95813.0,0.00510384]
[1735203849462,0.041778,95826.0,95813.0,0.00510384]
[1735203849856,0.041786,95807.0,95791.0,0.134792]
[1735203850157,0.041786,95807.0,95771.0,0.0754]
[1735203850158,0.041793,95791.0,95771.0,0.0754]
[1735203850353,0.041793,95791.0,95776.0,0.041799]
[1735203850553,0.15688906,95794.0,95780.0,0.041797]
[1735203850749,0.0751,95806.0,95780.0,0.15688906]
[1735203851049,0.001,95807.0,95799.0,0.041789]
[1735203851256,0.09179516,95804.0,95799.0,0.041789]
[1735203851651,0.09179516,95804.0,95792.0,0.0759]
[1735203851852,0.0751,95825.0,95792.0,0.3759]
[1735203852063,0.116878,95825.0,95809.0,0.041785]
[1735203852455,0.116878,95825.0,95799.0,0.004]
[1735203852456,0.041773,95836.0,95816.0,0.041781]
[1735203852756,0.041773,95836.0,95801.0,0.0803]
[1735203852757,0.084713,95839.0,95801.0,0.0803]
[1735203852962,0.041779,95824.0,95805.0,0.041786]
[1735203853154,0.15688906,95830.0,95801.0,0.0803]
[1735203853350,0.15688906,95830.0,95801.0,0.08826787]
[1735203853553,0.041781,95818.0,95801.0,0.08826787]
[1735203853861,0.001,95804.0,95801.0,0.08826787]
[1735203854063,0.001,95804.0,95799.0,0.042789]
[1735203854249,0.001,95804.0,95799.0,0.041789]
[1735203854455,0.041782,95815.0,95801.0,0.004]
[1735203854666,0.04961707,95815.0,95801.0,0.004]
[1735203855656,0.00783507,95815.0,95801.0,0.004]
[1735203855957,0.041776,95830.0,95813.0,0.041783]
[1735203856154,0.041776,95829.0,95813.0,0.041783]
[1735203856949,0.041776,95829.0,95814.0,0.041782]
[1735203857349,0.043776,95829.0,95816.0,0.041782]
[1735203858266,0.045776,95829.0,95816.0,0.041782]
[1735203858454,0.045776,95829.0,95798.0,0.08]
[1735203858455,0.304,95829.0,95798.0,0.08]
[1735203858763,0.304,95829.0,95780.0,0.15688906]
[1735203858764,0.15688906,95820.0,95797.0,0.04977457]
[1735203858964,0.304,95829.0,95781.0,0.0819]
[1735203858965,0.15688906,95810.0,95781.0,0.0819]
[1735203859167,0.15688906,95810.0,95790.0,0.041793]
[1735203859168,0.041787,95804.0,95790.0,0.041793]
[1735203860967,0.042787,95804.0,95798.0,0.002]
[1735203861668,0.042787,95804.0,95792.0,0.0829]
[1735203862258,0.042787,95804.0,95793.0,0.041792]
[1735203862459,0.042787,95804.0,95798.0,0.002]
[1735203862771,0.001,95804.0,95800.0,0.041788]
[1735203863472,0.001,95804.0,95798.0,0.006]
[1735203863864,0.001,95804.0,95798.0,0.004]
[1735203864168,0.00842143,95808.0,95800.0,0.004]
[1735203864361,0.0765,95809.0,95800.0,0.004]
[1735203865071,0.041787,95805.0,95800.0,0.004]
[1735203865561,0.041788,95803.0,95800.0,0.005]
[1735203865763,0.041788,95803.0,95800.0,0.001]
[1735203866463,0.041788,95803.0,95800.0,0.005]
[1735203866870,0.041788,95803.0,95800.0,0.001]
[1735203867072,0.041788,95803.0,95800.0,0.005]
[1735203867261,0.16594962,95809.0,95800.0,0.005]
[1735203867462,0.041788,95802.0,95800.0,0.005]
[1735203868568,0.041788,95802.0,95800.0,0.004]
[1735203868777,0.041788,95802.0,95800.0,0.005]
[1735203870576,0.08484962,95809.0,95800.0,0.005]
[1735203871764,0.00834962,95809.0,95800.0,0.046788]
[1735203871976,0.041785,95810.0,95800.0,0.042788]
[1735203872262,0.041785,95810.0,95800.0,0.046788]
[1735203873566,0.041785,95809.0,95800.0,0.046788]
[1735203874666,0.041785,95809.0,95800.0,0.045788]
[1735203874865,0.041786,95808.0,95800.0,0.046788]
[1735203875065,0.041787,95803.0,95800.0,0.005]
[1735203875268,0.041788,95801.0,95800.0,0.005]
[1735203875570,0.041792,95792.0,95781.0,0.041797]
[1735203875777,0.041792,95792.0,95783.0,0.041796]
[1735203876770,0.042792,95792.0,95783.0,0.041796]
[1735203877274,0.001,95792.0,95783.0,0.003]
[1735203878080,0.001,95792.0,95788.0,0.041794]
[1735203878675,0.15244017,95796.0,95788.0,0.041794]
[1735203878877,0.001,95792.0,95788.0,0.041794]
[1735203879269,0.15244017,95796.0,95788.0,0.041794]
[1735203879468,0.001,95792.0,95788.0,0.043794]
[1735203881285,0.24574936,95819.0,95795.0,0.041791]
[1735203881579,0.24574936,95819.0,95799.0,0.1047604]
[1735203881781,0.00833127,95818.0,95800.0,0.0808]
[1735203881973,0.00833127,95818.0,95812.0,0.041783]
[1735203882678,0.041779,95823.0,95812.0,0.041783]
[1735203883470,0.001,95813.0,95812.0,0.041783]
[1735203883773,0.001,95813.0,95790.0,0.041793]
[1735203884078,0.04179,95797.0,95792.0,0.24984352]
[1735203884779,0.1047604,95800.0,95792.0,0.24984352]
[1735203884975,0.041791,95796.0,95792.0,0.24984352]
[1735203885370,0.041791,95796.0,95792.0,0.25184352]
[1735203885575,0.041791,95795.0,95792.0,0.002]
[1735203885770,0.041791,95795.0,95774.0,0.2406]
[1735203885771,0.041791,95795.0,95790.0,0.003]
[1735203885971,0.041791,95795.0,95792.0,0.002]
[1735203886579,0.041791,95795.0,95792.0,0.003]
[1735203887281,0.001,95800.0,95792.0,0.003]
[1735203887486,0.041788,95801.0,95792.0,0.002]
[1735203888485,0.041789,95799.0,95792.0,0.043792]